bitfinex/quotes_BTCUSD_20250619
["timestamp","ask_amount","ask_price","bid_price","bid_amount"]
[1750323088587,7.00967883,105030.0,105020.0,0.0001]
[1750323088994,7.00967883,105030.0,105020.0,0.0273]
[1750323089580,7.00967883,105030.0,105020.0,0.0001]
[1750323089786,7.00972159,105030.0,105020.0,0.0001]
[1750323091037,7.00972159,105030.0,105020.0,0.0289]
[1750323091535,7.0901715,105030.0,105020.0,0.0289]
[1750323091750,7.0901715,105030.0,105020.0,0.0001]
[1750323093119,7.00972159,105030.0,105020.0,0.0001]
[1750323093348,7.04996159,105030.0,105020.0,0.0001]
[1750323094245,7.10706661,105030.0,105020.0,0.0001]
[1750323094957,7.10706862,105030.0,105020.0,0.0001]
[1750323095371,7.08249442,105030.0,105020.0,0.0001]
[1750323095573,7.20233922,105030.0,105020.0,0.0001]
[1750323098417,7.26818007,105030.0,105020.0,0.0001]
[1750323098650,6.66880141,105020.0,105010.0,0.0552]
[1750323098870,7.01334024,105020.0,105010.0,0.0552]
[1750323099081,7.01334146,105020.0,105010.0,0.0552]
[1750323099295,7.04196146,105020.0,105010.0,0.0552]
[1750323100189,7.07054908,105020.0,105010.0,0.0552]
[1750323100815,7.07054622,105020.0,105010.0,0.0552]
[1750323101026,7.05267231,105020.0,105010.0,0.0562]
[1750323101245,7.07053731,105020.0,105010.0,0.0562]
[1750323102297,7.03240918,105020.0,105010.0,0.0562]
[1750323102509,7.03240649,105020.0,105010.0,0.0562]
[1750323103940,7.03240615,105020.0,105010.0,0.0562]
[1750323106883,7.03239814,105020.0,105010.0,0.0562]
[1750323108146,7.0323978,105020.0,105010.0,0.0562]
[1750323108586,7.0322378,105020.0,105010.0,0.0562]
[1750323109783,7.03223262,105020.0,105010.0,0.0562]
[1750323110911,7.03223157,105020.0,105010.0,0.0562]
[1750323112582,7.03223105,105020.0,105010.0,0.0562]
[1750323114279,7.00364629,105020.0,105010.0,0.0562]
[1750323115412,7.003646,105020.0,105010.0,0.0562]
[1750323118185,6.98578829,105020.0,105010.0,0.0562]
[1750323118357,7.00364677,105020.0,105010.0,0.0562]
[1750323120323,7.04360677,105020.0,105010.0,0.0552]
[1750323120545,7.04460677,105020.0,105010.0,0.0552]
[1750323120896,7.03567972,105020.0,105010.0,0.0552]
[1750323121133,7.04460951,105020.0,105010.0,0.0552]
[1750323121599,7.07319427,105020.0,105010.0,0.0552]
[1750323121830,7.07419427,105020.0,105010.0,0.0552]
[1750323122123,7.16946412,105020.0,105010.0,0.0552]
[1750323123771,7.16947008,105020.0,105010.0,0.0552]
[1750323125407,7.07420023,105020.0,105010.0,0.0552]
[1750323125886,7.07420172,105020.0,105010.0,0.0552]
[1750323126601,7.07420464,105020.0,105010.0,0.0552]
[1750323129425,7.07421164,105020.0,105010.0,0.0552]
[1750323129742,7.07421261,105020.0,105010.0,0.0552]
[1750323131976,7.07421659,105020.0,105010.0,0.0552]
[1750323132345,7.07422068,105020.0,105010.0,0.0552]
[1750323135141,7.07422067,105020.0,105010.0,0.0552]
[1750323137226,7.05574701,105020.0,105010.0,0.0552]
[1750323137473,7.07362066,105020.0,105010.0,0.0552]
[1750323139522,5.99478097,105020.0,105010.0,0.0552]
[1750323139739,7.07362066,105020.0,105010.0,0.0552]
[1750323141282,7.07362071,105020.0,105010.0,0.0552]
[1750323142663,7.16889056,105020.0,105010.0,0.0552]
[1750323143823,7.05798125,105020.0,105010.0,0.0552]
[1750323144040,7.07361787,105020.0,105010.0,0.0552]
[1750323146854,7.07361746,105020.0,105010.0,0.0552]
[1750323148050,7.07185426,105020.0,105010.0,0.0552]
[1750323149181,7.06291859,105020.0,105010.0,0.0552]
[1750323149397,7.07185422,105020.0,105010.0,0.0552]
[1750323149599,7.07185201,105020.0,105010.0,0.0552]
[1750323152513,7.07185153,105020.0,105010.0,0.0552]
[1750323155297,7.06291616,105020.0,105010.0,0.0552]
[1750323155505,7.06291587,105020.0,105010.0,0.0552]
[1750323156991,7.05621455,105020.0,105010.0,0.0552]
[1750323157479,7.03834436,105020.0,105010.0,0.0552]
[1750323164383,7.04504563,105020.0,105010.0,0.0552]
[1750323164837,7.0629157,105020.0,105010.0,0.0552]
[1750323165109,7.15818555,105020.0,105010.0,0.0552]
[1750323165402,7.1218425,105020.0,105010.0,0.0552]
[1750323166019,7.13136431,105020.0,105010.0,0.0552]
[1750323166356,7.1402994,105020.0,105010.0,0.0552]
[1750323167018,7.04502955,105020.0,105010.0,0.0552]
[1750323168151,7.04503075,105020.0,105010.0,0.0552]
[1750323169760,7.0383288,105020.0,105010.0,0.0552]
[1750323170003,7.04503105,105020.0,105010.0,0.0552]
[1750323170699,7.04503107,105020.0,105010.0,0.0552]
[1750323170939,7.14030092,105020.0,105010.0,0.0552]
[1750323171184,7.14030092,105020.0,104990.0,0.0001]
[1750323171185,0.54952334,105000.0,104990.0,0.0001]
[1750323171444,6.95078442,105000.0,104990.0,0.0001]
[1750323171671,7.02391675,105000.0,104990.0,0.0242]
[1750323171895,7.1478116,105000.0,104990.0,0.0242]
[1750323173065,7.13888039,105000.0,104990.0,0.0262]
[1750323173319,7.14780611,105000.0,104990.0,0.0262]
[1750323173529,7.14780611,105000.0,104990.0,0.0252]
[1750323173735,7.14780577,105000.0,104990.0,0.0252]
[1750323173967,7.21780577,105000.0,104990.0,0.0252]
[1750323174198,7.21780111,105000.0,104990.0,0.0514]
[1750323176461,7.21110707,105000.0,104990.0,0.0514]
[1750323176680,7.21110041,105000.0,104990.0,0.0514]
[1750323178400,7.21778812,105000.0,104990.0,0.0514]
[1750323181937,7.19100698,105000.0,104990.0,0.0514]
[1750323182154,7.21106755,105000.0,104990.0,0.0514]
[1750323183009,7.21106755,105000.0,104990.0,0.0504]
[1750323183214,7.21206755,105000.0,104990.0,0.0504]
[1750323183474,7.21306755,105000.0,104990.0,0.0504]
[1750323184772,6.13422786,105000.0,104990.0,0.0504]
[1750323185012,7.1177977,105000.0,104990.0,0.0504]
[1750323187743,7.11778383,105000.0,104990.0,0.0504]
[1750323190403,7.09996089,105000.0,104990.0,0.0504]
[1750323190612,7.11778282,105000.0,104990.0,0.0504]
[1750323191219,7.09996089,105000.0,104990.0,0.0504]
[1750323191438,7.10211809,105000.0,104990.0,0.0504]
[1750323192408,6.90803809,105000.0,104990.0,0.0504]
[1750323192626,7.10211809,105000.0,104990.0,0.0504]
[1750323193517,7.11994449,105000.0,104990.0,0.0504]
[1750323194266,7.12885928,105000.0,104990.0,0.0504]
[1750323196144,7.1288625,105000.0,104990.0,0.0504]
[1750323196554,7.13555148,105000.0,104990.0,0.0504]
[1750323197316,7.16413624,105000.0,104990.0,0.0504]
[1750323198486,6.97005624,105000.0,104990.0,0.0504]
[1750323198690,7.16413624,105000.0,104990.0,0.0504]
[1750323198958,7.16416188,105000.0,104990.0,0.0504]
[1750323200683,7.13070285,105000.0,104990.0,0.0504]
[1750323200909,7.164197,105000.0,104990.0,0.0504]
[1750323201563,7.1643845,105000.0,104990.0,0.0504]
[1750323201778,7.20251263,105000.0,104990.0,0.0504]
[1750323201992,7.20252566,105000.0,104990.0,0.0504]
[1750323210461,7.20252737,105000.0,104990.0,0.0504]
[1750323210841,6.11261901,105000.0,104990.0,0.0504]
[1750323211058,7.1914587,105000.0,104990.0,0.0504]
[1750323213270,7.19146563,105000.0,104990.0,0.0504]
[1750323213889,7.19146515,105000.0,104990.0,0.0504]
[1750323216367,7.19146473,105000.0,104990.0,0.0504]
[1750323216580,7.28673458,105000.0,104990.0,0.0504]
[1750323218257,7.27779727,105000.0,104990.0,0.0504]
[1750323218474,7.28673447,105000.0,104990.0,0.0504]
[1750323218692,7.27267825,105000.0,104990.0,0.0001]
[1750323219131,7.27267812,105000.0,104990.0,0.0001]
[1750323219573,7.27167812,105000.0,104990.0,0.0505]
[1750323219762,7.27067812,105000.0,104990.0,0.0505]
[1750323220099,7.27267812,105000.0,104990.0,0.0505]
[1750323221054,7.27467812,105000.0,104990.0,0.0505]
[1750323222361,7.30327457,105000.0,104990.0,0.0505]
[1750323223702,7.27467812,105000.0,104990.0,0.0505]
[1750323224870,7.27467362,105000.0,104990.0,0.0253]
[1750323225959,0.20001886,104990.0,104980.0,0.03677]
[1750323226178,6.37058193,104990.0,104980.0,0.03677]
[1750323226618,7.09879053,104990.0,104980.0,0.03677]
[1750323227051,6.73024125,104990.0,104980.0,0.03677]
[1750323227468,6.72353922,104990.0,104980.0,0.03677]
[1750323227688,6.73024227,104990.0,104980.0,0.03677]
[1750323228990,6.73124227,104990.0,104980.0,0.03677]
[1750323230348,6.73123853,104990.0,104980.0,0.03677]
[1750323233340,6.75985277,104990.0,104980.0,0.03677]
[1750323237640,6.79949277,104990.0,104980.0,0.03677]
[1750323238889,6.79949088,104990.0,104980.0,0.03677]
[1750323241722,6.79949194,104990.0,104980.0,0.03677]
[1750323241947,6.79949234,104990.0,104980.0,0.03677]
[1750323243479,6.79949248,104990.0,104980.0,0.03677]
[1750323243956,6.79949248,104990.0,104980.0,0.01292]
[1750323244450,6.79949333,104990.0,104980.0,0.01292]
[1750323244675,6.79949333,104990.0,104980.0,0.00517]
[1750323244893,5.59003791,104980.0,104970.0,0.0001]
[1750323245116,6.6770908,104980.0,104970.0,0.0001]
[1750323245340,7.03670403,104980.0,104970.0,0.0001]
[1750323246683,7.06533403,104980.0,104970.0,0.0001]
[1750323246886,7.06533403,104980.0,104970.0,0.0248]
[1750323247087,7.13533403,104980.0,104970.0,0.0248]
[1750323247742,7.13533403,104980.0,104970.0,0.0278]
[1750323247929,7.06533403,104980.0,104970.0,0.0545]
[1750323255963,7.1185124,104980.0,104970.0,0.0545]
[1750323256828,7.11851298,104980.0,104970.0,0.0545]
[1750323258583,7.11851229,104980.0,104970.0,0.0545]
[1750323260836,7.10063316,104980.0,104970.0,0.0545]
[1750323261045,7.11850725,104980.0,104970.0,0.0545]
[1750323261460,7.1118042,104980.0,104970.0,0.0545]
[1750323261665,7.11850725,104980.0,104970.0,0.0545]
[1750323264565,6.64574937,104980.0,104970.0,0.0545]
[1750323264774,7.0232365,104980.0,104970.0,0.0545]
[1750323265007,2.03653345,104980.0,104970.0,0.0545]
[1750323265331,2.00793808,104980.0,104970.0,0.0545]
[1750323265967,1.93793808,104980.0,104970.0,0.0545]
[1750323266178,2.03320793,104980.0,104970.0,0.0545]
[1750323267202,2.03320781,104980.0,104970.0,0.0545]
[1750323267409,2.06180318,104980.0,104970.0,0.0545]
[1750323267837,1.90740318,104980.0,104970.0,0.0545]
[1750323268048,2.06180318,104980.0,104970.0,0.0545]
[1750323269952,2.0439294,104980.0,104970.0,0.0545]
[1750323270165,2.06180338,104980.0,104970.0,0.0545]
[1750323270792,1.96653353,104980.0,104970.0,0.0545]
[1750323273403,1.73790025,104980.0,104970.0,0.0545]
[1750323273628,1.92841272,104980.0,104970.0,0.0545]
[1750323273995,1.93793816,104980.0,104970.0,0.0545]
[1750323278690,1.93793952,104980.0,104970.0,0.0545]
[1750323279110,1.94464297,104980.0,104970.0,0.0545]
[1750323279332,2.03991282,104980.0,104970.0,0.0545]
[1750323279539,2.03991282,104980.0,104970.0,0.0298]
[1750323281165,2.10991282,104980.0,104970.0,0.0298]
[1750323281391,2.09203748,104980.0,104970.0,0.0298]
[1750323281616,2.10991404,104980.0,104970.0,0.0298]
[1750323282297,2.03991404,104980.0,104970.0,0.0298]
[1750323283465,2.06850941,104980.0,104970.0,0.0298]
[1750323283923,7.11850941,104980.0,104970.0,0.0298]
[1750323284805,7.11850941,104980.0,104970.0,0.0031]
[1750323285903,7.11851024,104980.0,104970.0,0.0031]
[1750323287066,7.0939294,104980.0,104970.0,0.0031]
[1750323287282,7.11850968,104980.0,104970.0,0.0031]
[1750323289031,7.11850968,104980.0,104970.0,0.0298]
[1750323289994,7.11850949,104980.0,104970.0,0.0298]
[1750323290433,7.11850949,104980.0,104970.0,0.0031]
[1750323291904,7.18850949,104980.0,104970.0,0.0031]
[1750323292956,7.18850811,104980.0,104970.0,0.0031]
[1750323295699,8.23994717,104980.0,104960.0,0.0489]
[1750323295918,8.23994717,104980.0,104950.0,0.0267]
[1750323295919,0.5305646,104960.0,104950.0,0.0267]
[1750323296137,0.3590575,104940.0,104930.0,0.20786884]
[1750323296346,1.07828396,104940.0,104930.0,0.20786884]
[1750323296571,1.07828396,104940.0,104930.0,0.19834069]
[1750323296572,1.28792728,104940.0,104930.0,0.19834069]
[1750323296788,1.09734219,104940.0,104930.0,0.2078703]
[1750323297018,1.09734219,104940.0,104930.0,0.21739982]
[1750323297232,1.08781294,104940.0,104930.0,0.21739982]
[1750323297461,1.09734201,104940.0,104930.0,0.21739982]
[1750323297959,1.09734201,104940.0,104930.0,0.22139982]
[1750323298173,1.12597701,104940.0,104930.0,0.22139982]
[1750323298570,1.11644794,104940.0,104930.0,0.22639982]
[1750323298775,1.11644794,104940.0,104930.0,0.25209982]
[1750323299011,1.10691887,104940.0,104930.0,0.25209982]
[1750323299247,1.10691887,104940.0,104930.0,0.27379982]
[1750323299467,1.10691878,104940.0,104930.0,0.27379982]
[1750323299687,1.10691878,104940.0,104930.0,0.27579982]
[1750323300589,1.11644767,104940.0,104930.0,0.27579982]
[1750323301480,1.10691878,104940.0,104930.0,0.27579982]
[1750323301941,1.11644767,104940.0,104930.0,0.27579982]
[1750323303175,1.12597665,104940.0,104930.0,0.27579982]
[1750323304248,1.13550572,104940.0,104930.0,0.27579982]
[1750323305659,1.32609145,104940.0,104930.0,0.27579982]
[1750323305936,1.4213613,104940.0,104930.0,0.2662703]
[1750323306130,1.31656274,104940.0,104930.0,0.2662703]
[1750323306834,1.31656274,104940.0,104930.0,0.25674069]
[1750323307499,1.30703385,104940.0,104930.0,0.25674088]
[1750323307721,1.30703385,104940.0,104930.0,0.26627067]
[1750323309257,1.30703385,104940.0,104930.0,0.27580037]
[1750323310381,1.30703385,104940.0,104930.0,0.26627067]
[1750323310621,1.29750487,104940.0,104930.0,0.26627067]
[1750323311082,0.57827841,104940.0,104930.0,0.26627067]
[1750323311287,1.29750487,104940.0,104930.0,0.24721099]
[1750323311430,1.2879758,104940.0,104930.0,0.24721099]
[1750323313125,1.2879758,104940.0,104930.0,0.25674078]
[1750323313634,1.2879758,104940.0,104930.0,0.26627048]
[1750323314517,1.11644831,104940.0,104930.0,0.27580009]
[1750323314732,1.12597756,104940.0,104930.0,0.27580009]
[1750323315172,1.11644767,104940.0,104930.0,0.27579945]
[1750323316743,1.12597647,104940.0,104930.0,0.27579945]
[1750323317218,0.40675001,104940.0,104930.0,0.27579945]
[1750323317418,1.12597647,104940.0,104930.0,0.27579945]
[1750323319168,1.13550563,104940.0,104930.0,0.27579945]
[1750323320883,0.41627917,104940.0,104930.0,0.27579945]
[1750323321087,0.40674992,104940.0,104930.0,0.27579945]
[1750323321292,1.13550545,104940.0,104930.0,0.27579945]
[1750323324170,1.12597638,104940.0,104930.0,0.27579945]
[1750323325222,1.13550545,104940.0,104930.0,0.27579945]
[1750323326683,1.13550545,104940.0,104930.0,0.43015945]
[1750323329342,1.13550618,104940.0,104930.0,0.43015945]
[1750323329732,1.13550672,104940.0,104930.0,0.43015945]
[1750323332890,1.32609181,104940.0,104930.0,0.43015945]
[1750323333696,1.32609181,104940.0,104930.0,0.41110032]
[1750323333998,1.31656301,104940.0,104930.0,0.41110032]
[1750323334308,1.30703403,104940.0,104930.0,0.41110032]
[1750323337454,1.29750496,104940.0,104930.0,0.40157062]
[1750323337688,1.85410856,104940.0,104930.0,0.006]
[1750323337907,1.87695881,104940.0,104930.0,0.006]
[1750323339165,2.03131881,104940.0,104930.0,0.006]
[1750323339381,2.10131881,104940.0,104930.0,0.006]
[1750323339586,2.10131881,104940.0,104930.0,0.004]
[1750323339798,0.54966302,104930.0,104920.0,0.44303323]
[1750323339999,1.26888948,104930.0,104920.0,0.44303323]
[1750323340215,1.26888948,104930.0,104920.0,0.4335028]
[1750323340413,1.29752848,104930.0,104920.0,0.4335028]
[1750323340636,1.29752848,104930.0,104920.0,0.42397228]
[1750323341696,1.29752848,104930.0,104920.0,0.44303341]
[1750323341900,1.29752848,104930.0,104920.0,0.44503341]
[1750323342483,1.30705837,104930.0,104920.0,0.44503341]
[1750323342703,1.30705837,104930.0,104920.0,0.44503277]
[1750323342938,1.11645494,104930.0,104920.0,0.44803277]
[1750323343287,1.12598501,104930.0,104920.0,0.44803277]
[1750323345087,1.13551517,104930.0,104920.0,0.43850234]
[1750323346765,1.15560084,104930.0,104920.0,0.43850234]
[1750323347169,1.15560084,104930.0,104920.0,0.44803277]
[1750323347908,1.14607068,104930.0,104920.0,0.44803277]
[1750323348146,1.12598501,104930.0,104920.0,0.44803277]
[1750323349623,1.11645494,104930.0,104920.0,0.44803277]
[1750323355436,1.10692496,104930.0,104920.0,0.44803277]
[1750323356301,1.08786546,104930.0,104920.0,0.44803277]
[1750323356496,1.10692441,104930.0,104920.0,0.44803277]
[1750323356755,1.10692432,104930.0,104920.0,0.44803277]
[1750323357449,1.10692423,104930.0,104920.0,0.44803277]
[1750323357669,1.11645393,104930.0,104920.0,0.44803277]
[1750323358259,1.11645393,104930.0,104920.0,0.29367277]
[1750323358415,1.11645384,104930.0,104920.0,0.29367277]
[1750323358640,1.12598354,104930.0,104920.0,0.29367277]
[1750323358846,1.11645384,104930.0,104920.0,0.29367277]
[1750323359045,1.10692423,104930.0,104920.0,0.29367277]
[1750323360059,1.0973948,104930.0,104920.0,0.29367277]
[1750323360695,1.10692423,104930.0,104920.0,0.29367277]
[1750323361917,1.0973948,104930.0,104920.0,0.29367277]
[1750323362154,1.08786546,104930.0,104920.0,0.29367277]
[1750323362659,1.09739489,104930.0,104920.0,0.29367277]
[1750323363420,1.0973948,104930.0,104920.0,0.29367277]
[1750323365621,1.10692423,104930.0,104920.0,0.29367277]
[1750323366674,1.0973948,104930.0,104920.0,0.29367277]
[1750323366889,0.368639,104930.0,104920.0,0.29367277]
[1750323367106,0.72825223,104930.0,104920.0,0.29367277]
[1750323367777,0.69961323,104930.0,104920.0,0.29367277]
[1750323387432,0.50344458,104930.0,104920.0,0.29367277]
[1750323387647,0.35961323,104930.0,104920.0,0.29367277]
[1750323388858,0.55204833,104940.0,104930.0,0.21919263]
[1750323389067,0.75734156,104940.0,104930.0,0.21919263]
[1750323389477,1.10687063,104940.0,104930.0,0.21919263]
[1750323391479,1.10687063,104940.0,104930.0,0.22019263]
[1750323392362,1.09734156,104940.0,104930.0,0.22019263]
[1750323392995,1.10687063,104940.0,104930.0,0.22019263]
[1750323394039,1.08781258,104940.0,104930.0,0.22019263]
[1750323396143,1.08781249,104940.0,104930.0,0.22019263]
[1750323396553,1.09734138,104940.0,104930.0,0.22019263]
[1750323398182,1.09734138,104940.0,104930.0,0.24539263]
[1750323401053,1.08781249,104940.0,104930.0,0.24539263]
[1750323401652,1.09734138,104940.0,104930.0,0.24539263]
[1750323403451,1.08781249,104940.0,104930.0,0.24539263]
[1750323405387,1.15781249,104940.0,104930.0,0.24539263]
[1750323406807,1.14828369,104940.0,104930.0,0.24539263]
[1750323408203,1.15781258,104940.0,104930.0,0.24539263]
[1750323409461,1.14828369,104940.0,104930.0,0.24539263]
[1750323409629,1.15781249,104940.0,104930.0,0.24539263]
[1750323410922,1.09734138,104940.0,104930.0,0.24539263]
[1750323411312,1.09734138,104940.0,104930.0,0.22019263]
[1750323413392,1.10687045,104940.0,104930.0,0.22019263]
[1750323413571,1.09734138,104940.0,104930.0,0.22019263]
[1750323413802,1.10687036,104940.0,104930.0,0.22019263]
[1750323416232,1.10687091,104940.0,104930.0,0.22019263]
[1750323416798,1.10687136,104940.0,104930.0,0.22019263]
[1750323417001,1.53648459,104940.0,104930.0,0.22019263]
[1750323417156,1.53648504,104940.0,104930.0,0.22019263]
[1750323417368,1.56228504,104940.0,104930.0,0.22019263]
[1750323417568,1.73381226,104940.0,104930.0,0.20113332]
[1750323417774,1.88801226,104940.0,104930.0,0.21066311]
[1750323418218,1.87848319,104940.0,104930.0,0.21066311]
[1750323418749,1.87848319,104940.0,104930.0,0.20113332]
[1750323418954,1.87848319,104940.0,104930.0,0.22019309]
[1750323418955,0.7996435,104940.0,104930.0,0.22019309]
[1750323419192,1.87848319,104940.0,104930.0,0.2106633]
[1750323419403,1.86895403,104940.0,104930.0,0.2106633]
[1750323419987,1.86895403,104940.0,104930.0,0.22019319]
[1750323421504,1.86895403,104940.0,104930.0,0.2106633]
[1750323421755,1.85942478,104940.0,104930.0,0.2106633]
[1750323428776,0.78058509,104940.0,104930.0,0.2106633]
[1750323428970,1.85942478,104940.0,104930.0,0.2106633]
[1750323431734,1.63522478,104940.0,104930.0,0.2106633]
[1750323432822,1.73049463,104940.0,104930.0,0.001]
[1750323433035,1.9328023,104940.0,104930.0,0.001]
[1750323433291,1.9614403,104940.0,104930.0,0.001]
[1750323438655,2.0314403,104940.0,104930.0,0.001]
[1750323445684,1.31221384,104940.0,104930.0,0.001]
[1750323445922,1.91087045,104940.0,104930.0,0.001]
[1750323450035,1.93507045,104940.0,104930.0,0.001]
[1750323453096,2.03034938,104940.0,104930.0,0.001]
[1750323455759,2.00614938,104940.0,104930.0,0.001]
[1750323456159,2.10141923,104940.0,104930.0,0.001]
[1750323459348,2.12631923,104940.0,104930.0,0.001]
[1750323463670,0.22563323,104930.0,104920.0,0.034685]
[1750323463909,1.48148059,104930.0,104920.0,0.034685]
[1750323464133,1.69742937,104930.0,104920.0,0.034685]
[1750323464331,1.72607137,104930.0,104920.0,0.034685]
[1750323466590,1.72607137,104930.0,104920.0,0.036685]
[1750323467000,1.72607137,104930.0,104920.0,0.034685]
[1750323467862,0.5401523,104920.0,104910.0,0.0001]
[1750323468063,0.81432215,104920.0,104910.0,0.0001]
[1750323468292,0.20017138,104910.0,104900.0,0.0001]
[1750323468425,1.60164922,104910.0,104900.0,0.0001]
[1750323468655,1.57883,104910.0,104900.0,0.0001]
[1750323468899,1.63027825,104910.0,104900.0,0.0001]
[1750323469121,1.7255481,104910.0,104900.0,0.0001]
[1750323470227,1.7265481,104910.0,104900.0,0.0001]
[1750323470630,1.70574885,104910.0,104900.0,0.0001]
[1750323473768,2.04574885,104910.0,104900.0,0.0001]
[1750323477679,2.03621706,104910.0,104900.0,0.0001]
[1750323478117,2.04574885,104910.0,104900.0,0.0001]
[1750323478547,0.96690916,104910.0,104900.0,0.0001]
[1750323478773,2.04574885,104910.0,104900.0,0.0001]
[1750323480690,7.09574885,104910.0,104900.0,0.0001]
[1750323483159,1.30293015,104900.0,104890.0,0.0001]
[1750323483373,1.64883893,104900.0,104890.0,0.0001]
[1750323483774,1.67748893,104900.0,104890.0,0.0001]
[1750323488382,1.65358893,104900.0,104890.0,0.0001]
[1750323491665,1.70134489,104900.0,104890.0,0.0001]
[1750323492611,2.04134489,104900.0,104890.0,0.0001]
[1750323493069,2.06704489,104900.0,104890.0,0.0001]
[1750323493291,2.06804489,104900.0,104890.0,0.0001]
[1750323495018,2.07004489,104900.0,104890.0,0.0001]
[1750323496857,2.09859077,104900.0,104890.0,0.0001]
[1750323497824,2.10527212,104900.0,104890.0,0.0001]
[1750323498497,1.87653578,104900.0,104890.0,0.0001]
[1750323498720,2.06719354,104900.0,104890.0,0.0001]
[1750323498945,2.05102624,104900.0,104890.0,0.0001]
[1750323499659,8.20486593,104900.0,104890.0,0.0001]
[1750323499887,8.20486593,104900.0,104890.0,0.00903405]
[1750323500120,0.20020955,104890.0,104880.0,0.0001]
[1750323500353,6.74557398,104890.0,104880.0,0.0001]
[1750323500609,6.78569398,104890.0,104880.0,0.0001]
[1750323500834,6.88434898,104890.0,104880.0,0.0001]
[1750323501316,7.23103001,104890.0,104880.0,0.0001]
[1750323503364,0.20022864,104880.0,104870.0,0.0001]
[1750323503590,7.06295307,104880.0,104870.0,0.0001]
[1750323504723,7.06962942,104880.0,104870.0,0.0001]
[1750323504941,7.07162942,104880.0,104870.0,0.0001]
[1750323505192,7.06495307,104880.0,104870.0,0.0001]
[1750323505866,7.06495307,104880.0,104870.0,0.0021]
[1750323506740,7.07586723,104880.0,104870.0,0.0021]
[1750323506946,7.07586723,104880.0,104870.0,0.0001]
[1750323507165,7.07686723,104880.0,104870.0,0.0001]
[1750323509342,7.05176723,104880.0,104870.0,0.0001]
[1750323510942,7.08042523,104880.0,104870.0,0.0001]
[1750323512125,6.92494523,104880.0,104870.0,0.00902006]
[1750323512299,7.08042523,104880.0,104870.0,0.05912006]
[1750323513771,7.08042523,104880.0,104870.0,0.05911962]
[1750323514190,2.03046523,104880.0,104870.0,0.05911962]
[1750323514362,2.03046523,104880.0,104870.0,0.0502]
[1750323514762,1.87494523,104880.0,104870.0,0.0502]
[1750323515103,2.03050523,104880.0,104870.0,0.0502]
[1750323515464,0.95166554,104880.0,104870.0,0.0502]
[1750323515675,2.03050523,104880.0,104870.0,0.0502]
[1750323519251,1.87494523,104880.0,104870.0,0.0502]
[1750323519471,2.03054523,104880.0,104870.0,0.0502]
[1750323524043,1.93527538,104880.0,104870.0,0.0502]
[1750323524260,1.32478304,104880.0,104870.0,0.25998326]
[1750323524468,1.130401,104880.0,104870.0,0.27905367]
[1750323524675,1.1399357,104880.0,104870.0,0.27905367]
[1750323524969,1.14947031,104880.0,104870.0,0.27905367]
[1750323525158,1.13993643,104880.0,104870.0,0.28858873]
[1750323525367,1.19624755,104880.0,104870.0,0.28858873]
[1750323525754,1.19624755,104880.0,104870.0,0.28858809]
[1750323525958,1.38694167,104880.0,104870.0,0.28858809]
[1750323526630,1.54262167,104880.0,104870.0,0.25998326]
[1750323526862,1.73702074,104880.0,104870.0,0.25998344]
[1750323527088,1.89270074,104880.0,104870.0,0.25998344]
[1750323527301,1.53308751,104880.0,104870.0,0.26951887]
[1750323527516,1.52355317,104880.0,104870.0,0.26951887]
[1750323528131,1.36787317,104880.0,104870.0,0.26951887]
[1750323528335,1.52363317,104880.0,104870.0,0.26951887]
[1750323529715,1.54643978,104880.0,104870.0,0.26951887]
[1750323530721,1.18363317,104880.0,104870.0,0.26951887]
[1750323531049,1.02787317,104880.0,104870.0,0.26951887]
[1750323531267,1.18359317,104880.0,104870.0,0.26951887]
[1750323531480,1.18359317,104880.0,104870.0,0.26703887]
[1750323532414,1.18359317,104880.0,104870.0,0.27657421]
[1750323532842,1.18359317,104880.0,104870.0,0.26703887]
[1750323533467,1.18359317,104880.0,104870.0,0.25750344]
[1750323534452,1.17405856,104880.0,104870.0,0.25750344]
[1750323534663,1.16452386,104880.0,104870.0,0.04772]
[1750323535048,1.52413709,104880.0,104870.0,0.04772]
[1750323535605,1.54694108,104880.0,104870.0,0.04772]
[1750323535867,0.20024783,104870.0,104860.0,0.26923897]
[1750323536112,0.20024783,104870.0,104860.0,0.27877494]
[1750323536113,1.02427948,104870.0,104860.0,0.27877494]
[1750323536340,1.03381509,104870.0,104860.0,0.27877494]
[1750323537222,1.06247109,104870.0,104860.0,0.27877494]
[1750323537652,1.07200634,104870.0,104860.0,0.27877494]
[1750323538812,1.07200634,104870.0,104860.0,0.26923897]
[1750323540690,1.07200634,104870.0,104860.0,0.27877494]
[1750323541555,1.41200634,104870.0,104860.0,0.27877494]
[1750323542710,1.21175851,104870.0,104860.0,0.27877494]
[1750323542942,1.40247082,104870.0,104860.0,0.26923897]
[1750323543156,1.55811082,104870.0,104860.0,0.26923897]
[1750323544724,1.55811082,104870.0,104860.0,0.27877494]
[1750323545183,1.65971916,104870.0,104860.0,0.0001]
[1750323545424,1.63431916,104870.0,104860.0,0.0001]
[1750323546510,1.47867916,104870.0,104860.0,0.0001]
[1750323546729,1.63447916,104870.0,104860.0,0.05883652]
[1750323547150,1.63447916,104870.0,104860.0,0.03393652]
[1750323547360,1.47867916,104870.0,104860.0,0.03393652]
[1750323547569,1.63447916,104870.0,104860.0,0.00963652]
[1750323547774,1.10048755,104870.0,104860.0,0.0001]
[1750323548070,1.28494555,104870.0,104860.0,0.0001]
[1750323548283,1.35494555,104870.0,104860.0,0.0001]
[1750323548489,1.35494555,104870.0,104860.0,0.025]
[1750323548735,0.99533232,104870.0,104860.0,0.025]
[1750323548986,1.35494555,104870.0,104860.0,0.03453652]
[1750323551017,1.35494555,104870.0,104860.0,0.23480344]
[1750323551213,1.35494555,104870.0,104860.0,0.24433969]
[1750323551839,1.35494555,104870.0,104860.0,0.27727585]
[1750323553364,1.35486555,104870.0,104860.0,0.28681192]
[1750323554521,1.06887431,104870.0,104860.0,0.28681192]
[1750323554721,1.25958662,104870.0,104860.0,0.27727585]
[1750323555999,1.27865757,104870.0,104860.0,0.27727585]
[1750323557011,1.27865757,104870.0,104860.0,0.28681137]
[1750323559106,1.27865757,104870.0,104860.0,0.25820317]
[1750323560180,1.27865757,104870.0,104860.0,0.24866692]
[1750323561000,1.26912223,104870.0,104860.0,0.24866692]
[1750323562065,1.26912223,104870.0,104860.0,0.25820326]
[1750323562776,0.10819334,104870.0,104860.0,0.25820326]
[1750323562992,0.45821915,104870.0,104860.0,0.2772753]
[1750323565736,0.46775476,104870.0,104860.0,0.2772753]
[1750323569757,0.65846707,104870.0,104860.0,0.2772753]
[1750323570259,0.46775476,104870.0,104860.0,0.2772753]
[1750323571084,0.65846707,104870.0,104860.0,0.27727549]